[Event "European Women-ch 2023"]
[Site "Petrovac"]
[Date "2023.03.21"]
[Round "4.11"]
[White "Wagner, Dinara"]
[Black "Heinemann, Josefine"]
[Result "1-0"]
[ECO "D41"]
[WhiteElo "2411"]
[BlackElo "2343"]
[Annotator "TA"]
[PlyCount "82"]
[EventDate "2023.03.15"]
[EventType "swiss"]
[EventCountry "MNE"]
[SourceTitle "playchess.com"]
[Source "ChessBase"]
[SourceQuality "1"]
[TimeControl "40/5400+30:1800+30"]

{[%evp 21,82,18,37,28,25,0,14,22,18,8,8,0,24,24,22,24,43,30,32,25,64,65,114,1,82,99,305,305,305,305,876,875,804,797,2508,2397,1530,1127,1054,990,1827,1368,1372,1335,1346,1177,1184,1177,1076,1076,1076,1076,1076,1062,1039,1036,29982,29983,29983,29983,29984,29985,29984]} 1. d4 {[%emt 0:00:04] Edouard,Romain} Nf6 {[%emt 0:00:08]} 2. c4 {[%emt 0:00:05]} e6 {[%emt 0:00:05]} 3. Nf3 {[%emt 0:00:12]} d5 {[%emt 0:00:18]} 4. Nc3 {[%emt 0:00:07]} c5 {[%emt 0:00:28]} 5. cxd5 {[%emt 0:00:07]} Nxd5 {[%emt 0:01:42]} 6. e4 {[%emt 0:00:30]} Nxc3 {[%emt 0:00:06]} 7. bxc3 {[%emt 0:00:04]} cxd4 {[%emt 0:00:05]} 8. cxd4 {[%emt 0:00:03]} Bb4+ {[%emt 0:00:06]} 9. Bd2 {[%emt 0:00:06]} Bxd2+ {[%emt 0:00:05]} 10. Qxd2 {[%emt 0:00:03]} O-O {[%emt 0:00:08]} 11. Bc4 {[%emt 0:00:15]} Nd7 {[%emt 0:00:10]} 12. O-O {[%emt 0:00:27] D41: Queen's Gambit Declined: Semi-Tarrasch with 5 cxd5.} b6 {[%emt 0:00:24]} 13. d5 {[%emt 0:00:43]} Nc5 {[%emt 0:06:21]} 14. Rfe1 {[%emt 0:00:47] The position is equal.} exd5 {[%emt 0:05:04]} 15. exd5 {[%emt 0:02:07]} ({Of course not} 15. Qxd5 Be6 16. Qxd8 Rfxd8 17. Bxe6 Nxe6 $15) 15... Qd6 {[%emt 0:00:37] [#]} 16. h4 $146 {[%emt 0:00:29]} ({Predecessor:} 16. Qd4 Bb7 17. Rad1 Rae8 18. Ne5 a6 19. a3 Re7 20. Re3 Rfe8 21. Nxf7 Kxf7 22. Re6 Qd8 23. Qf4+ Kg8 24. Rxe7 Rxe7 25. d6+ Re6 26. d7 g6 27. Rd6 {1-0 Giri,A (2764)-Nepomniachtchi,I (2784) Chessable Masters Final rapid 2020 (2.12)}) 16... h6 {[%emt 0:06:24]} 17. Ne5 {[%emt 0:03:48]} Bb7 {[%emt 0:08:02]} 18. Rad1 {[%emt 0:21:06]} Rfe8 {[%emt 0:09:13]} 19. Qd4 {[%emt 0:01:14]} ({Reject} 19. Qf4 Re7 20. Re3 Nd7 $11) 19... Re7 {[%emt 0:08:30]} 20. Re3 {[%emt 0:03:26]} a6 {[%emt 0:13:37] Repels Bb5} 21. a3 {[%emt 0:04:19] White is more active.} Rae8 {[%emt 0:06:28] [#]} (21... b5 $14) 22. Rde1 {[%emt 0:00:50]} ({Only move:} 22. Nxf7 $1 $16 Kxf7 23. Re6) 22... b5 {[%emt 0:06:34]} (22... f6 $1 $11 23. Ng6 Rxe3 24. Rxe3 Rxe3 25. Qxe3 Kf7 26. Nh8+ Kf8) 23. Ba2 $16 {[%emt 0:01:36]} Nd7 $2 {[%emt 0:05:25] [#] A mistake that costs the game.} (23... Rd8 $16) 24. Nxf7 $1 $18 {[%emt 0:09:22][%mdl 576] Remove Defender} Kxf7 {[%emt 0:06:56]} 25. Re6 {[%emt 0:02:30]} Nf6 $2 {[%emt 0:00:11]} (25... Bxd5 26. Rxd6 Rxe1+ 27. Kh2 Bxa2) 26. Rxd6 {[%emt 0:01:02]} Rxe1+ {[%emt 0:00:05]} 27. Kh2 {[%emt 0:00:02][%cal Od6f6] Black must now prevent Rxf6+!} R8e4 {[%emt 0:00:15] [#]} 28. Rxf6+ $1 {[%emt 0:00:56][%mdl 576] Clearance} gxf6 {[%emt 0:00:05]} 29. Qa7 {[%emt 0:03:37]} Kg6 {[%emt 0:05:45]} 30. Qxb7 {[%emt 0:00:24] aiming for d6.} Rxh4+ {[%emt 0:00:11]} 31. Kg3 {[%emt 0:00:05]} Ra4 {[%emt 0:00:09]} 32. f3 {[%emt 0:25:24] Intending d6 and mate.} Rxa3 {[%emt 0:00:20] [#]} 33. Qc8 $1 {[%emt 0:03:43] White wants to mate with Qg8+.} Rxa2 {[%emt 0:09:50][%mdl 4096] Endgame KQ-KRR} 34. Qg8+ {[%emt 0:03:18]} Kf5 {[%emt 0:00:04]} 35. Qg4+ {[%emt 0:00:30]} Ke5 {[%emt 0:00:05]} 36. Qe6+ {[%emt 0:00:06][%mdl 64] Skewer} Kd4 {[%emt 0:00:03]} 37. Qxe1 {[%emt 0:00:29] d6 would kill now.} Kxd5 {[%emt 0:00:18]} 38. Qe4+ {[%emt 0:00:32]} Kc5 {[%emt 0:02:38]} 39. Qe7+ {[%emt 0:00:41] White mates.} Kd4 {[%emt 0:00:11]} 40. Qb4+ {[%emt 0:00:00]} Ke5 {[%emt 0:00:00]} 41. f4+ {[%emt 0:01:50]} Kd5 {[%emt 0:00:59] An entertaining game by Wagner.   Weighted Error Value: White=0.10 (very precise) /Black=0.42} 1-0

[Event "European Women-ch 2023"]
[Site "Petrovac"]
[Date "2023.03.21"]
[Round "4.11"]
[White "Pogorelskikh, Sofia"]
[Black "Velikic, Adela"]
[Result "1-0"]
[ECO "B48"]
[WhiteElo "2102"]
[BlackElo "2329"]
[Annotator "TA"]
[PlyCount "70"]
[EventDate "2023.03.15"]
[EventType "swiss"]
[EventCountry "MNE"]
[SourceTitle "playchess.com"]
[Source "ChessBase"]
[SourceQuality "1"]
[TimeControl "40/5400+30:1800+30"]

{[%evp 11,70,24,28,33,37,22,19,23,35,8,10,0,0,0,12,-21,10,10,9,7,12,12,12,22,15,0,53,48,54,15,162,170,164,166,212,214,249,181,222,220,241,247,297,197,558,536,633,710,697,680,718,753,693,639,715,698,1016,1009,29979,29980,29999]} 1. e4 {[%emt 0:00:04]} c5 {[%emt 0:00:05]} 2. Nf3 {[%emt 0:00:16]} e6 {[%emt 0:00:06]} 3. d4 {[%emt 0:00:26]} cxd4 {[%emt 0:00:06]} 4. Nxd4 {[%emt 0:00:09]} Nc6 {[%emt 0:00:05]} 5. Nc3 {[%emt 0:01:27]} Qc7 {[%emt 0:00:12]} 6. Be3 {[%emt 0:00:35]} a6 {[%emt 0:00:10]} 7. Qf3 {[%emt 0:00:38] 7.g4 is the recent fashion. B48: Sicilian: Taimanov: 5 Nc3 Qc7 6 Be3 a6 without Be2.} b5 {[%emt 0:00:12]} 8. Nxc6 {[%emt 0:02:02]} Qxc6 {[%emt 0:00:07]} 9. Bd3 {[%emt 0:00:56] The position is equal.} Ba3 {[%emt 0:00:09][%mdl 64] Deflection} 10. bxa3 {[%emt 0:10:57]} Qxc3+ {[%emt 0:00:09]} 11. Ke2 {[%emt 0:00:16]} Ne7 {[%emt 0:00:19]} 12. Qg3 {[%emt 0:03:44] [#]} f5 $146 {[%emt 0:03:27]} ({Predecessor:} 12... O-O 13. Qd6 Nc6 14. f4 e5 15. f5 Re8 16. Kf2 Na5 17. Rhd1 Nc4 18. Qb4 {½-½ Goh,W (2435)-Vorobiov,E (2584) Helsingor Xtracon op 2016 (8)}) 13. Qd6 {[%emt 0:13:05]} Bb7 {[%emt 0:11:07]} (13... fxe4 {simplifies} 14. Bxe4 Qc4+ 15. Bd3 Qg4+) 14. f3 {[%emt 0:15:19]} fxe4 {[%emt 0:06:51]} 15. fxe4 $40 {[%emt 0:00:15][%mdl 128] White has some attack.} Qc6 {[%emt 0:02:57]} 16. Bc5 {[%emt 0:03:23][%csl Gc5][%cal Rd6e7]} Qxd6 {[%emt 0:28:46]} 17. Bxd6 {[%emt 0:00:09]} Nc8 {[%emt 0:04:12] Black is weak on the dark squares} 18. Bb4 {[%emt 0:01:10][%cal Oa3a4,Bd6b4,Bb4c5,Bc5e3][%mdl 32]} a5 {[%emt 0:07:06]} (18... Nb6 $11) 19. Bc5 $1 $14 {[%emt 0:03:49]} d6 {[%emt 0:04:58]} 20. Bxb5+ {[%emt 0:03:59]} Kd8 {[%emt 0:08:53] [#] This move loses the game for Black.} (20... Ke7 $1 $11 21. Bf2 (21. Bd4 e5 $11) 21... Bxe4) 21. Rhf1 $1 $18 {[%emt 0:15:01]} Ba6 {[%emt 0:04:02]} 22. Bxa6 {[%emt 0:00:57]} Rxa6 {[%emt 0:00:09]} (22... dxc5 $142 23. Bxc8 Rxc8) 23. Be3 {[%emt 0:01:15]} Rc6 {[%emt 0:00:16]} 24. Kd3 {[%emt 0:01:07]} Ke8 {[%emt 0:03:32]} 25. Rab1 {[%emt 0:01:07]} h6 {[%emt 0:03:15]} 26. Rb5 {[%emt 0:01:18]} g5 {[%emt 0:01:26]} 27. Rb7 {[%emt 0:02:45] Black must now prevent Rf6.} Ne7 $2 {[%emt 0:00:50]} (27... Rf8 28. Rxf8+ Kxf8) 28. Rf6 {[%emt 0:01:42]} e5 {[%emt 0:03:15]} 29. Re6 {[%emt 0:03:35]} Rh7 {[%emt 0:00:12] [#]} 30. h4 $1 {[%emt 0:02:08][%cal Bh2h4,Bh4h5][%mdl 544]} Rg7 {[%emt 0:02:04]} (30... gxh4 31. Bf2) 31. h5 {[%emt 0:02:12]} Rh7 {[%emt 0:02:25]} 32. a4 {[%emt 0:01:41]} Kf8 {[%emt 0:00:53]} 33. c4 {[%emt 0:01:55]} Rf7 {[%emt 0:02:41]} 34. Rxh6 {[%emt 0:00:45]} Rf1 {[%emt 0:01:55]} 35. Rh7 {[%emt 0:03:13]} Nc8 {[%emt 0:00:33] Artfully played by Pogorelskikh.   Weighted Error Value: White=0.14 (very precise) /Black=0.62} 1-0

[Event "European Women-ch 2023"]
[Site "Petrovac"]
[Date "2023.03.21"]
[Round "4.11"]
[White "Maras, Marija Mia"]
[Black "Kejzar, Petra"]
[Result "0-1"]
[ECO "A36"]
[WhiteElo "1051"]
[BlackElo "2128"]
[Annotator "TA"]
[PlyCount "26"]
[EventDate "2023.03.15"]
[EventType "swiss"]
[EventCountry "MNE"]
[SourceTitle "playchess.com"]
[Source "ChessBase"]
[SourceQuality "1"]
[TimeControl "40/5400+30:1800+30"]

{[%evp 14,26,11,0,17,-23,-23,-33,-16,-145,-143,-129,-139,-29997,-29998]} 1. c4 {[%emt 0:00:01]} c5 {[%emt 0:00:07]} 2. Nc3 {[%emt 0:00:04]} Nc6 {[%emt 0:00:07]} 3. g3 {[%emt 0:00:06]} g6 {[%emt 0:00:09]} 4. Bg2 {[%emt 0:00:14]} Bg7 {[%emt 0:00:06]} 5. e3 {[%emt 0:00:16]} e5 {[%emt 0:01:41]} 6. Nge2 {[%emt 0:00:09]} d6 {[%emt 0:00:45]} 7. O-O {[%emt 0:01:26]} Nge7 {[%emt 0:00:30]} 8. Nd5 {[%emt 0:01:29]} Nxd5 {[%emt 0:01:33] [#] A36: Symmetrical English vs ...g6: 4 Bg2 Bg7.} 9. Bxd5 $146 {[%emt 0:00:04]} ({Predecessor:} 9. cxd5 Ne7 10. d4 cxd4 11. exd4 O-O 12. dxe5 Bxe5 13. Qb3 Bg4 14. Nc3 Nf5 15. Qa4 Nd4 16. Be3 {1-0 Froewis,G (2434)-Umudova,N (2289) Vienna op 2015 (9)}) 9... Bh3 {[%emt 0:01:27]} 10. Re1 $1 {[%emt 0:02:13]} O-O {[%emt 0:00:44]} 11. f4 {[%emt 0:01:23]} (11. Nc3 $11 {remains equal.}) 11... Nb4 $17 {[%emt 0:01:51]} 12. Bxb7 {[%emt 0:01:59]} Nd3 {[%emt 0:00:29]} 13. Bxa8 $4 {[%emt 0:00:14][%mdl 8192] [#]} (13. Be4 $17 Nxe1 14. Qxe1) 13... Qxa8 {[%emt 0:00:06] White got outplayed after the opening.   Weighted Error Value: White=1.24/Black=0.08 (flawless)} 0-1

[Event "European Women-ch 2023"]
[Site "Petrovac"]
[Date "2023.03.21"]
[Round "4.12"]
[White "Gunina, Valentina"]
[Black "Klek, Hanna Marie"]
[Result "1-0"]
[ECO "D37"]
[WhiteElo "2478"]
[BlackElo "2314"]
[Annotator "TA"]
[PlyCount "118"]
[EventDate "2023.03.15"]
[EventType "swiss"]
[EventCountry "MNE"]
[SourceTitle "playchess.com"]
[Source "ChessBase"]
[SourceQuality "1"]
[TimeControl "40/5400+30:1800+30"]

{[%evp 9,118,12,10,5,14,9,18,18,10,0,0,0,6,0,41,27,39,37,65,79,71,30,40,27,68,75,97,91,102,92,102,102,97,104,102,108,120,96,95,101,95,74,96,74,71,56,60,47,51,55,55,52,69,37,50,64,83,79,96,97,114,122,126,74,72,91,148,136,138,139,130,133,169,169,192,189,173,166,306,278,200,175,564,507,816,816,822,790,767,751,939,913,1277,1235,1142,1135,2375,2163,2019,1929,4133,4133,4129,4129,29968,6091,29978,29979,29980,29981,29966]} 1. d4 {[%emt 0:00:04]} Nf6 {[%emt 0:00:05]} 2. c4 {[%emt 0:00:10][%cal Bc2c4,Bc4c5,Bc5b6][%mdl 32]} e6 {[%emt 0:00:06]} 3. Nf3 {[%emt 0:00:05]} d5 {[%emt 0:00:07]} 4. Nc3 {[%emt 0:00:06]} a6 {[%emt 0:00:05]} 5. c5 {[%emt 0:00:37]} b6 {[%emt 0:00:07]} 6. cxb6 {[%emt 0:00:07] D37: Queen's Gambit Declined: 5 Bf4.} c5 {[%emt 0:00:07]} ({Much less strong is} 6... Nbd7 7. bxc7 Qxc7 8. Bd2 $14) 7. Bf4 {[%emt 0:01:23]} Bd6 {[%emt 0:00:15] Wards off Bc7} 8. Bxd6 {[%emt 0:06:21] The position is equal.} Qxd6 {[%emt 0:00:23]} 9. Rc1 {[%emt 0:08:28] Hoping for dxc5.} Nbd7 {[%emt 0:04:39]} 10. e3 {[%emt 0:11:11] [#]} O-O $146 {[%emt 0:07:58]} ({Predecessor:} 10... Qxb6 11. b3 Ne4 12. Nxe4 dxe4 13. dxc5 Nxc5 14. Qd4 Nd3+ 15. Bxd3 Qxd4 16. Nxd4 exd3 {½-½ Bromberger,S (2481)-Schneider,J (2338) BL2-Ost 2122 2022 (7.2)}) 11. Be2 {[%emt 0:08:15]} Rb8 {[%emt 0:06:41]} 12. O-O {[%emt 0:01:01]} c4 {[%emt 0:22:01]} 13. Nd2 {[%emt 0:00:29]} e5 {[%emt 0:09:35]} 14. dxe5 {[%emt 0:07:01]} Nxe5 {[%emt 0:00:14]} 15. Nf3 {[%emt 0:00:42]} (15. Na4 $5 {[%cal Rd2c4]}) 15... Bf5 {[%emt 0:06:26]} 16. Qd4 {[%emt 0:09:15]} Nc6 {[%emt 0:09:04]} 17. Qd2 {[%emt 0:00:42]} Rfd8 {[%emt 0:00:32]} 18. Rfd1 $36 {[%emt 0:00:56][%cal Oe2c4][%mdl 2048] Keeping Black busy.} Qb4 {[%emt 0:10:05]} 19. Nd4 $1 {[%emt 0:01:44]} Nxd4 {[%emt 0:00:06]} 20. Qxd4 {[%emt 0:00:04][%cal Ob2b3]} Qxb2 {[%emt 0:05:15] [#]} 21. Bxc4 $1 {[%emt 0:01:24][%cal Rc3d5][%mdl 64] Pin, Double Attack} Rxb6 {[%emt 0:05:40]} (21... Qxb6 22. Qxb6) 22. Bb3 {[%emt 0:02:49]} ({But not} 22. Bxd5 Rbd6 23. Qc4 Nxd5 24. Nxd5 Qe5 $14) 22... Rbd6 {[%emt 0:01:37] [#]} 23. Nb5 $1 {[%emt 0:00:46][%mdl 576] Discovered Attack} Qxd4 {[%emt 0:00:15]} 24. Nxd4 {[%emt 0:00:05]} Bd7 {[%emt 0:02:06]} 25. f3 {[%emt 0:00:09]} h5 {[%emt 0:00:52]} 26. h4 {[%emt 0:00:27]} a5 {[%emt 0:01:11]} 27. Rd2 {[%emt 0:00:20] White is more active.} Rb8 {[%emt 0:00:53]} 28. Bd1 {[%emt 0:00:35]} Rdb6 {[%emt 0:02:08]} 29. Nb3 {[%emt 0:03:23]} Ra8 {[%emt 0:02:39]} 30. Kf2 {[%emt 0:03:58]} Rb4 {[%emt 0:00:55]} 31. Rd4 {[%emt 0:01:02]} Bb5 {[%emt 0:01:39]} 32. a3 {[%emt 0:07:09]} Rc4 {[%emt 0:00:40]} 33. Rdxc4 {[%emt 0:00:55]} Bxc4 {[%emt 0:00:41]} 34. Nd2 {[%emt 0:00:06]} Bb5 {[%emt 0:00:46]} 35. Rc5 {[%emt 0:00:06]} Bd7 {[%emt 0:00:29]} 36. Nb1 {[%emt 0:02:12]} (36. Bb3 $142) 36... Kf8 $16 {[%emt 0:00:36]} 37. Nc3 {[%emt 0:02:25]} Rc8 {[%emt 0:00:16]} ({Better is} 37... Be6) 38. Rxc8+ {[%emt 0:00:04]} Bxc8 {[%emt 0:00:04][%mdl 4096] Endgame KBN-KBN} 39. Bb3 {[%emt 0:00:03]} Be6 {[%emt 0:01:06]} 40. Ke2 $1 {[%emt 0:00:00]} Ke7 {[%emt 0:00:00] [#]} 41. Kd3 $1 {[%emt 0:01:02]} Kd6 {[%emt 0:03:59]} 42. Kd4 {[%emt 0:00:07]} Kc6 {[%emt 0:01:02]} 43. Ne2 {[%emt 0:03:20]} Ng8 {[%emt 0:05:26]} (43... Kc7 {keeps fighting.} 44. Nf4 Kd6) 44. Nf4 $18 {[%emt 0:01:53][%csl LRd5,LRh5]} Ne7 {[%emt 0:00:08]} 45. Bc2 {[%emt 0:03:03]} g6 $2 {[%emt 0:05:52]} (45... Kd6 46. Nxh5 g6) 46. Ke5 {[%emt 0:00:32]} Bf5 {[%emt 0:02:01]} (46... Nf5 $142 47. Bxf5 Bxf5 48. Nxh5 Bb1) 47. e4 {[%emt 0:01:58]} dxe4 {[%emt 0:02:43]} 48. fxe4 {[%emt 0:00:02][%cal Bf3e4,Be4e5,Be5e6][%mdl 32]} Bg4 {[%emt 0:02:32]} 49. Kf6 {[%emt 0:00:14][%csl LRe7,LRf7]} Nc8 {[%emt 0:01:16]} 50. e5 {[%emt 0:01:06]} Nb6 {[%emt 0:00:39]} 51. Kxf7 {[%emt 0:00:27]} Nc4 {[%emt 0:00:18]} 52. e6 {[%emt 0:00:21]} Nxa3 {[%emt 0:03:10]} 53. Ba4+ {[%emt 0:00:56]} Nb5 {[%emt 0:00:08]} 54. Nxg6 {[%emt 0:00:19] Threatening mate with e7.} Kd6 {[%emt 0:02:25]} 55. Bxb5 {[%emt 0:00:54] White threatens e7 and mate.} Bxe6+ {[%emt 0:00:06]} 56. Kf6 {[%emt 0:00:03]} Bb3 {[%emt 0:02:10]} 57. Nf4 {[%emt 0:00:28]} a4 {[%emt 0:01:32] [#]} 58. Bxa4 $1 {[%emt 0:00:05]} Bxa4 {[%emt 0:00:08]} (58... Bc4 59. Nxh5) 59. Nxh5 {[%emt 0:00:04]} Kd5 {[%emt 0:00:11] Weighted Error Value: White=0.05 (flawless) /Black=0.44} 1-0

[Event "European Women-ch 2023"]
[Site "Petrovac"]
[Date "2023.03.21"]
[Round "4.12"]
[White "Hrescak, Ivana"]
[Black "Lomaia, Diana"]
[Result "0-1"]
[ECO "A20"]
[WhiteElo "2127"]
[BlackElo "1950"]
[Annotator "TA"]
[PlyCount "78"]
[EventDate "2023.03.15"]
[EventType "swiss"]
[EventCountry "MNE"]
[SourceTitle "playchess.com"]
[Source "ChessBase"]
[SourceQuality "1"]
[TimeControl "40/5400+30:1800+30"]

{[%evp 9,78,0,8,18,0,3,7,-32,28,13,24,-9,-14,-6,-12,-14,-8,0,25,44,84,98,91,108,130,135,129,122,129,141,153,-312,-309,-320,-326,-338,-340,-356,-355,-331,-339,-334,-307,-318,-319,-300,-317,-297,-275,-359,-349,-591,-589,-547,-547,-513,-522,-442,-444,-672,-639,-565,-551,-5869,-5198,-6295,-6147,-6035,-6039,-4133,-2104]} 1. c4 {[%emt 0:00:04]} e5 {[%emt 0:00:13]} 2. g3 {[%emt 0:00:22]} Nf6 {[%emt 0:00:44]} 3. Bg2 {[%emt 0:02:27]} c6 {[%emt 0:00:33]} 4. d4 {[%emt 0:02:59]} e4 {[%emt 0:01:15]} 5. d5 {[%emt 0:02:31]} cxd5 {[%emt 0:09:24]} 6. cxd5 {[%emt 0:00:11] A20: English Opening: 1...e5.} Bb4+ {[%emt 0:01:18]} 7. Bd2 {[%emt 0:02:30]} Qe7 {[%emt 0:13:43]} 8. a3 {[%emt 0:14:56] The position is equal.} Bc5 {[%emt 0:03:16] [#]} (8... Bxd2+ $1 $15 9. Qxd2 (9. Nxd2 O-O $11) 9... d6) 9. e3 $146 {[%emt 0:04:24]} ({Predecessor:} 9. Nc3 d6 10. Bxe4 Bxf2+ 11. Kxf2 Nxe4+ 12. Nxe4 Qxe4 13. Nf3 O-O 14. Bf4 Bh3 15. Rg1 {0-1 Hala,V (2074)-Koys,M (2086) Czechia KP-chTB 0607 2006 (6.5)}) 9... O-O {[%emt 0:15:26]} 10. Nc3 {[%emt 0:05:01]} d6 {[%emt 0:00:00]} 11. h3 $36 {[%emt 0:05:04][%mdl 2048] White has the initiative.} Nbd7 {[%emt 0:03:54][%cal Bb8d7,Bd7c5,Bc5d3,Bd3f2][%mdl 32]} 12. Qc2 {[%emt 0:20:00][%cal Rc3e4]} Re8 {[%emt 0:04:26][%cal Ob7b5]} 13. g4 {[%emt 0:03:13]} Qe5 {[%emt 0:05:43]} 14. Nge2 {[%emt 0:03:54]} Bb6 {[%emt 0:09:25] [#]} 15. Ng3 $1 {[%emt 0:05:21]} Nc5 {[%emt 0:04:01]} 16. O-O {[%emt 0:00:09]} a5 {[%emt 0:03:00]} 17. b4 {[%emt 0:05:30]} axb4 {[%emt 0:00:12]} 18. axb4 {[%emt 0:00:01][%mdl 64] Discovered Attack} Rxa1 {[%emt 0:00:08]} 19. Rxa1 {[%emt 0:00:02]} Nd3 {[%emt 0:01:26][%cal Od3f2] aiming for ...Nxf2!} 20. Rb1 $2 {[%emt 0:00:11] [#] This costs White the game.} (20. Bxe4 $6 Nxb4 21. Qb3 Nxe4 22. Ngxe4 Bc5 $14) (20. Ngxe4 $16 {and life is bright.} Nxe4 21. Bxe4 (21. Qxd3 Nxd2 22. Ra8 f5 $11) 21... Nxf2 {[%mdl 64] Decoy} 22. Kxf2 (22. Bxh7+ $2 Kf8 $19) 22... Qh2+ 23. Bg2) 20... Nxf2 $19 {[%emt 0:04:17][%mdl 576] Decoy} 21. Nf1 {[%emt 0:07:08]} (21. Kxf2 Qf4+) 21... Nd3 {[%emt 0:02:09]} 22. Nxe4 {[%emt 0:00:55]} Nxe4 {[%emt 0:00:38]} (22... Qxd5 $2 23. Nxf6+ gxf6 24. Bxd5 $18) 23. Qxd3 {[%emt 0:00:19] [#]} Nxd2 {[%emt 0:02:31]} 24. Qxd2 {[%emt 0:00:19]} h5 {[%emt 0:01:20]} (24... Bxe3+ 25. Nxe3 Qxe3+ 26. Qxe3 Rxe3 27. Rc1 $11) 25. Bf3 {[%emt 0:02:41]} hxg4 {[%emt 0:02:23]} ({Stronger than} 25... Bxe3+ 26. Nxe3 Qxe3+ 27. Qxe3 Rxe3 28. Kf2 $17) 26. hxg4 {[%emt 0:00:07]} Qg5 {[%emt 0:03:16]} ({And not} 26... Bxe3+ 27. Qxe3 Qxe3+ 28. Nxe3 Rxe3 29. Kf2 $17) 27. Qg2 {[%emt 0:02:26]} Bxe3+ {[%emt 0:01:37]} 28. Nxe3 {[%emt 0:00:14]} Qxe3+ {[%emt 0:00:02]} (28... Rxe3 $2 {too greedy.} 29. Rc1 Re8 30. Rc2 $19) 29. Qf2 {[%emt 0:05:24]} Qf4 {[%emt 0:00:17]} 30. Re1 $2 {[%emt 0:02:10]} (30. Rf1 {keeps fighting.} Bxg4 31. Bh1 Qxf2+ 32. Kxf2) 30... Rxe1+ {[%emt 0:00:51] Black is clearly winning.} 31. Qxe1 {[%emt 0:00:01]} Qxf3 {[%emt 0:00:45]} 32. Qe8+ {[%emt 0:00:08]} Kh7 {[%emt 0:00:05]} 33. Qxc8 {[%emt 0:00:07]} Qxd5 {[%emt 0:00:37][%mdl 4096] Endgame Strongly threatening ...Kg6. KQ-KQ} 34. Qc2+ {[%emt 0:00:28]} (34. Kf2 $142) 34... g6 {[%emt 0:00:13]} 35. Qf2 {[%emt 0:01:06] Wards off Qd4} Kg7 {[%emt 0:01:04]} 36. Qb2+ {[%emt 0:00:53]} Qe5 {[%emt 0:00:11]} 37. Qd2 {[%emt 0:00:17]} d5 {[%emt 0:01:02][%cal Bd6d5,Bd5d4][%mdl 32]} 38. g5 {[%emt 0:00:12]} d4 {[%emt 0:00:27]} 39. Kg2 {[%emt 0:00:04]} Qe3 {[%emt 0:00:48] Weighted Error Value: White=0.82/Black=0.08 (flawless)} 0-1